bitfinex-derivatives/quotes_BTCF0:USTF0_20250327
["timestamp","ask_amount","ask_price","bid_price","bid_amount"]
[1743094169990,0.76921579,87048.0,87047.0,0.0001723]
[1743094173382,0.6320689,87048.0,87047.0,0.0001723]
[1743094174698,0.5996289,87048.0,87047.0,0.0001723]
[1743094175093,0.1252689,87048.0,87047.0,0.0001723]
[1743094175398,0.2388289,87048.0,87047.0,0.0001723]
[1743094175991,0.23885454,87048.0,87047.0,0.0001723]
[1743094176188,0.1164998,87048.0,87047.0,0.0001723]
[1743094176499,0.2300598,87048.0,87047.0,0.0001723]
[1743094176693,0.2859335,87048.0,87047.0,0.0001723]
[1743094180393,0.2300598,87048.0,87047.0,0.0001723]
[1743094180799,0.2300598,87048.0,87047.0,0.3609723]
[1743094180994,0.2300598,87048.0,87047.0,0.1375723]
[1743094182400,0.3246598,87048.0,87047.0,0.1375723]
[1743094183201,0.33348089,87048.0,87047.0,0.1375723]
[1743094183502,0.3246598,87048.0,87047.0,0.1375723]
[1743094183702,0.33348151,87048.0,87047.0,0.1375723]
[1743094185500,0.33348165,87048.0,87047.0,0.1375723]
[1743094185700,0.33348165,87048.0,87047.0,0.0912723]
[1743094185891,0.21992165,87048.0,87047.0,0.0912723]
[1743094186094,0.33344165,87048.0,87047.0,0.0912723]
[1743094186296,0.3246198,87048.0,87047.0,0.0912723]
[1743094186497,0.33355567,87048.0,87047.0,0.0912723]
[1743094187903,0.38942534,87048.0,87047.0,0.0912723]
[1743094188110,0.40942534,87048.0,87047.0,0.0912723]
[1743094189305,0.38048947,87048.0,87047.0,0.0912723]
[1743094189603,0.38929799,87048.0,87047.0,0.0912723]
[1743094191301,0.38935053,87048.0,87047.0,0.0912723]
[1743094192296,0.75015053,87048.0,87047.0,0.0912723]
[1743094192507,0.77015053,87048.0,87047.0,0.0912723]
[1743094194097,0.1149143,87037.0,87029.0,8e-05]
[1743094194401,0.1149394,87018.0,87008.0,0.01146798]
[1743094194600,0.23998266,87018.0,87014.0,8e-05]
[1743094194805,0.24158266,87018.0,87014.0,8e-05]
[1743094195600,0.1149447,87014.0,87012.0,0.4095912]
[1743094195910,0.1166247,87014.0,87012.0,0.4095912]
[1743094196907,0.1166247,87014.0,87013.0,0.5059]
[1743094197110,0.1176247,87014.0,87013.0,0.5059]
[1743094197508,0.1186247,87014.0,87013.0,0.5059]
[1743094198507,0.1186247,87014.0,87013.0,0.1451]
[1743094200306,0.48826059,87014.0,87013.0,0.1451]
[1743094200611,0.58316059,87014.0,87013.0,0.096]
[1743094200909,0.63166059,87014.0,87013.0,0.096]
[1743094201412,0.5929447,87014.0,87013.0,0.096]
[1743094202800,0.1186247,87014.0,87013.0,0.096]
[1743094203304,0.1176247,87014.0,87013.0,0.096]
[1743094203609,0.4784247,87014.0,87013.0,0.096]
[1743094203810,0.5753247,87014.0,87013.0,0.09696]
[1743094204008,0.5743247,87014.0,87013.0,0.09696]
[1743094204916,0.4774247,87014.0,87013.0,0.09696]
[1743094205108,0.1166247,87014.0,87013.0,0.09696]
[1743094205308,0.00168,87014.0,87013.0,0.211906]
[1743094205510,0.172414,87017.0,87016.0,0.057471]
[1743094205712,0.174054,87017.0,87016.0,0.057471]
[1743094205912,0.0591105,87017.0,87016.0,0.057471]
[1743094208816,0.0591105,87017.0,87016.0,0.058431]
[1743094209212,0.0591105,87017.0,87016.0,0.00096]
[1743094209611,0.0679725,87017.0,87016.0,0.00096]
[1743094210120,0.1139725,87017.0,87016.0,0.00096]
[1743094210621,0.1631725,87017.0,87016.0,0.00096]
[1743094211207,0.5239725,87017.0,87016.0,0.00096]
[1743094211623,0.5699725,87017.0,87016.0,0.00096]
[1743094212524,0.5611105,87017.0,87016.0,0.00096]
[1743094213719,0.1149473,87012.0,87011.0,1e-07]
[1743094213922,0.1149473,87012.0,87009.0,0.00011512]
[1743094213923,0.11495,87010.0,87009.0,0.00011512]
[1743094214216,0.23007,87010.0,87009.0,0.00011512]
[1743094214819,0.32367,87010.0,87009.0,2e-08]
[1743094215021,0.43859997,87010.0,87009.0,2e-08]
[1743094215412,0.54859997,87010.0,87009.0,2e-08]
[1743094215915,0.1149618,87001.0,87000.0,0.01451102]
[1743094216224,0.5909218,87001.0,87000.0,2e-08]
[1743094216925,0.7925218,87001.0,87000.0,2e-08]
[1743094217323,0.90746366,87001.0,87000.0,2e-08]
[1743094218525,0.9063629,87001.0,87000.0,2e-08]
[1743094219429,0.1149764,86990.0,86989.0,8e-05]
[1743094219726,0.1150041,86969.0,86968.0,0.4163]
[1743094219928,0.4774841,86969.0,86968.0,0.4163]
[1743094220225,0.4774041,86969.0,86968.0,0.4163]
[1743094221017,0.48643655,86969.0,86968.0,0.4163]
[1743094221218,0.49785801,86969.0,86968.0,0.4163]
[1743094221412,0.48983009,86969.0,86968.0,0.4163]
[1743094221619,0.48983009,86969.0,86968.0,0.4639]
[1743094222619,0.49083009,86969.0,86968.0,0.5122]
[1743094224221,0.49083009,86969.0,86968.0,0.0959]
[1743094224525,0.49996392,86969.0,86968.0,0.0959]
[1743094226116,0.49896392,86969.0,86968.0,0.0959]
[1743094226331,0.49996392,86969.0,86968.0,0.0959]
[1743094226621,0.49896392,86969.0,86968.0,0.0959]
[1743094227026,0.54376392,86969.0,86968.0,0.0959]
[1743094227617,0.5587146,86969.0,86968.0,0.0959]
[1743094228217,0.51412089,86969.0,86968.0,0.0959]
[1743094228423,0.52037328,86969.0,86968.0,0.0959]
[1743094228619,0.56517328,86969.0,86968.0,0.0959]
[1743094229019,0.52037328,86969.0,86968.0,0.0959]
[1743094232223,0.56844933,86969.0,86968.0,0.0959]
[1743094232425,0.52074933,86969.0,86968.0,0.0959]
[1743094233314,0.56604933,86969.0,86968.0,0.0959]
[1743094233720,0.67956933,86969.0,86968.0,0.0959]
[1743094233921,0.72400296,86969.0,86968.0,0.0959]
[1743094234526,0.67870296,86969.0,86968.0,0.0959]
[1743094234918,0.72400296,86969.0,86968.0,0.0959]
[1743094235525,0.63420296,86969.0,86968.0,0.0959]
[1743094236029,0.62795057,86969.0,86968.0,0.0959]
[1743094236328,0.51443057,86969.0,86968.0,0.0959]
[1743094236934,0.62795057,86969.0,86968.0,0.0959]
[1743094238224,0.73795057,86969.0,86968.0,0.0959]
[1743094238420,0.1150531,86932.0,86919.0,0.0575348]
[1743094238628,0.48699482,86932.0,86927.0,0.01179178]
[1743094238822,0.48699482,86932.0,86928.0,0.1150573]
[1743094239027,0.48699482,86932.0,86927.0,0.01179178]
[1743094239327,0.50214499,86932.0,86911.0,0.5231112]
[1743094239522,0.61647802,86932.0,86915.0,0.1150744]
[1743094239717,0.61647802,86932.0,86918.0,0.0575358]
[1743094239917,0.66397802,86932.0,86925.0,8e-05]
[1743094240626,0.65520289,86932.0,86925.0,8e-05]
[1743094241030,0.65420289,86932.0,86925.0,8e-05]
[1743094241227,0.54068289,86932.0,86925.0,8e-05]
[1743094241531,0.66918382,86932.0,86926.0,0.0457]
[1743094241836,0.66918382,86932.0,86927.0,0.0484]
[1743094242029,0.67777097,86932.0,86927.0,0.0484]
[1743094242425,0.63027097,86932.0,86927.0,0.0484]
[1743094243225,0.63018437,86932.0,86927.0,0.1634596]
[1743094243432,0.63018437,86932.0,86927.0,0.0484]
[1743094244036,0.63018437,86932.0,86925.0,8e-05]
[1743094244037,0.115061,86926.0,86925.0,8e-05]
[1743094244240,0.115061,86926.0,86924.0,8e-05]
[1743094244241,0.1150703,86919.0,86908.0,0.36088733]
[1743094244541,0.60035666,86919.0,86909.0,0.1150831]
[1743094244734,0.60035666,86919.0,86910.0,0.115082]
[1743094245040,0.60035666,86919.0,86911.0,0.1150808]
[1743094245333,0.69265666,86919.0,86909.0,0.1150825]
[1743094245641,0.1150822,86910.0,86909.0,0.1150825]
[1743094245838,0.1150835,86909.0,86908.0,0.36088733]
[1743094246029,0.12608986,86909.0,86908.0,0.4758849]
[1743094246537,0.12601968,86909.0,86908.0,0.4758849]
[1743094247537,0.12701968,86909.0,86908.0,0.4758849]
[1743094247729,0.1177635,86909.0,86908.0,0.5669849]
[1743094248340,0.17278521,86918.0,86917.0,0.115073]
[1743094248540,0.29824483,86918.0,86917.0,0.115673]
[1743094248727,0.29824483,86918.0,86917.0,0.0006]
[1743094248931,0.29836747,86918.0,86917.0,0.0947]
[1743094249132,0.34316747,86918.0,86917.0,0.0947]
[1743094249338,0.29836747,86918.0,86917.0,0.209173]
[1743094249532,0.29836747,86918.0,86917.0,0.209813]
[1743094249835,0.29836747,86918.0,86917.0,0.09474]
[1743094250032,0.29936747,86918.0,86917.0,0.09474]
[1743094250228,0.34416747,86918.0,86917.0,0.209813]
[1743094250939,0.344196,86918.0,86917.0,0.209813]
[1743094251127,0.344196,86918.0,86917.0,0.09474]
[1743094251328,0.39019549,86918.0,86917.0,0.09474]
[1743094252330,0.39019549,86918.0,86917.0,0.209813]
[1743094252925,0.39019549,86918.0,86917.0,0.09474]
[1743094253227,0.39019549,86918.0,86917.0,0.209813]
[1743094254339,0.34419549,86918.0,86917.0,0.209813]
[1743094254733,0.29939549,86918.0,86917.0,0.209813]
[1743094255741,0.34659549,86918.0,86917.0,0.209813]
[1743094256637,0.29939549,86918.0,86917.0,0.209813]
[1743094256834,0.18431929,86918.0,86917.0,0.209813]
[1743094257241,0.22831929,86918.0,86917.0,0.209813]
[1743094257433,0.27551929,86918.0,86917.0,0.09474]
[1743094257631,0.27551929,86918.0,86917.0,0.209813]
[1743094258232,0.21798179,86918.0,86917.0,0.209813]
[1743094258432,0.21820508,86918.0,86917.0,0.209813]
[1743094258635,0.01193128,86918.0,86917.0,0.209813]
[1743094259035,0.01081127,86918.0,86917.0,0.209813]
[1743094259941,0.01193128,86918.0,86917.0,0.209813]
[1743094260332,0.01182614,86918.0,86917.0,0.209813]
[1743094260533,0.12689774,86918.0,86917.0,0.209813]
[1743094260732,0.01182614,86918.0,86917.0,0.209813]
[1743094261742,0.0118657,86918.0,86917.0,0.209813]
[1743094262427,0.1019657,86918.0,86917.0,0.209813]
[1743094263438,0.2170373,86918.0,86917.0,0.209813]
[1743094263633,0.11727189,86918.0,86917.0,0.209813]
[1743094263839,0.23234349,86918.0,86917.0,0.209813]
[1743094264643,0.11727189,86918.0,86917.0,0.209813]
[1743094265035,0.23234349,86918.0,86917.0,0.209813]
[1743094265435,0.23262229,86918.0,86917.0,0.209813]
[1743094265835,0.11755069,86918.0,86917.0,0.209813]
[1743094266043,0.23262229,86918.0,86917.0,0.209813]
[1743094266440,0.11755069,86918.0,86917.0,0.209813]
[1743094266741,0.23262229,86918.0,86917.0,0.209813]
[1743094267140,0.27582229,86918.0,86917.0,0.209813]
[1743094267444,0.27533638,86918.0,86917.0,0.115713]
[1743094267644,0.28189583,86918.0,86917.0,0.115713]
[1743094267843,0.28189583,86918.0,86917.0,0.00064]
[1743094268147,0.1150809,86911.0,86910.0,0.2742548]
[1743094268443,0.14087317,86911.0,86910.0,0.3202548]
[1743094268636,0.21679024,86911.0,86910.0,0.3202548]
[1743094268832,0.22334969,86911.0,86910.0,0.3202548]
[1743094269246,0.22434969,86911.0,86910.0,0.3202548]
[1743094270040,0.22534969,86911.0,86910.0,0.3212548]
[1743094270644,0.22534969,86911.0,86910.0,0.2317548]
[1743094270844,0.22534969,86911.0,86910.0,0.0016]
[1743094271149,0.58592373,86911.0,86910.0,0.0016]
[1743094271551,0.1150875,86906.0,86905.0,8e-05]
[1743094271852,0.12547088,86906.0,86905.0,0.1157288]
[1743094272048,0.26047088,86906.0,86905.0,0.1164088]
[1743094272248,0.26047088,86906.0,86905.0,0.00068]
[1743094272848,0.26772802,86906.0,86905.0,0.1157688]
[1743094273351,0.10664052,86906.0,86905.0,0.1636688]
[1743094273546,0.10664052,86906.0,86905.0,0.2090688]
[1743094273851,0.10138338,86906.0,86905.0,0.5698688]
[1743094274050,0.13689478,86912.0,86911.0,0.1150809]
[1743094274248,0.13769478,86912.0,86911.0,0.1157209]
[1743094274448,0.13769478,86912.0,86911.0,0.2090209]
[1743094275342,0.13869478,86912.0,86911.0,0.2090209]
[1743094275551,0.0018,86912.0,86911.0,0.2090209]
[1743094276251,0.1168796,86912.0,86911.0,0.2090209]
[1743094276448,0.1178796,86912.0,86911.0,0.2090209]
[1743094276653,0.2079796,86912.0,86911.0,0.2090209]
[1743094276955,0.0028,86912.0,86911.0,0.2090209]
[1743094277648,0.0575208,86941.0,86914.0,0.057538]
[1743094277953,0.0575208,86941.0,86924.0,0.4758637]
[1743094277954,0.1594624,86925.0,86924.0,0.4758637]
[1743094278155,0.00060001,86925.0,86924.0,0.5207037]
[1743094278346,0.0575251,86935.0,86934.0,0.1150504]
[1743094278548,0.1150571,86929.0,86928.0,0.1725822]
[1743094278856,0.1150571,86929.0,86928.0,0.1733822]
[1743094279660,0.1158571,86929.0,86928.0,0.2309103]
[1743094279858,0.0008,86929.0,86928.0,0.2309103]
[1743094280152,0.00017251,86937.0,86928.0,0.2309103]
[1743094280153,0.00017251,86937.0,86928.0,0.0583281]
[1743094280360,0.00077252,86937.0,86936.0,0.1150478]
[1743094280547,0.00017251,86937.0,86936.0,0.1158878]
[1743094280748,0.00017251,86937.0,86936.0,0.2040878]
[1743094281355,0.00101251,86937.0,86936.0,0.2040878]
[1743094281859,0.00101251,86937.0,86936.0,0.2050878]
[1743094282045,0.00017251,86937.0,86936.0,0.2050878]
[1743094282449,0.00017251,86937.0,86936.0,0.1605878]
[1743094282653,0.00017251,86937.0,86936.0,0.2051878]
[1743094282860,0.00017251,86937.0,86936.0,0.2061878]
[1743094283060,0.00097251,86937.0,86936.0,0.2061878]
[1743094283365,0.00017251,86937.0,86936.0,0.2061878]
[1743094283551,0.00077252,86937.0,86936.0,0.2061878]
[1743094283861,0.00017251,86937.0,86936.0,0.2061878]
[1743094284060,0.00017251,86937.0,86936.0,0.3197078]
[1743094284262,0.11521901,86937.0,86936.0,0.3197078]
[1743094284563,0.11605901,86937.0,86936.0,0.3197078]
[1743094285160,0.00101251,86937.0,86936.0,0.3197078]
[1743094285363,0.00017251,86937.0,86936.0,0.3197078]
[1743094285963,0.00017251,86937.0,86936.0,0.32826287]
[1743094286164,0.115035,86946.0,86945.0,0.1725505]
[1743094286464,0.115835,86946.0,86945.0,0.1733505]
[1743094287354,0.115835,86946.0,86945.0,0.2207505]
[1743094287554,0.116835,86946.0,86945.0,0.2207505]
[1743094288361,0.117835,86946.0,86945.0,0.23224639]
[1743094288750,0.116835,86946.0,86945.0,0.23324639]
[1743094288949,0.115835,86946.0,86945.0,0.23324639]
[1743094289152,0.115835,86946.0,86945.0,0.23424639]
[1743094289556,0.162435,86946.0,86945.0,0.23424639]
[1743094291671,0.0471,86951.0,86950.0,0.1150293]
[1743094291965,0.0471,86951.0,86950.0,0.1160693]
[1743094292156,0.04814001,86951.0,86950.0,0.2075693]
[1743094292357,0.1018,86962.0,86959.0,0.1150147]
[1743094292358,0.172525,86960.0,86959.0,0.1150147]
[1743094292564,0.24037544,86960.0,86959.0,0.1161347]
[1743094293062,0.23115441,86960.0,86959.0,0.1161347]
[1743094293264,0.05862851,86960.0,86959.0,0.1161347]
[1743094293454,0.00112001,86960.0,86959.0,0.1628347]
[1743094293655,0.1018,86962.0,86961.0,0.1150147]
[1743094293856,0.10240001,86962.0,86961.0,0.1160547]
[1743094294065,0.10240001,86962.0,86961.0,0.1592547]
[1743094294363,0.21741341,86962.0,86961.0,0.1592547]
[1743094294665,0.21741341,86962.0,86961.0,0.1160547]
[1743094294857,0.30721341,86962.0,86961.0,0.1160547]
[1743094295655,0.31021341,86962.0,86961.0,0.1160547]
[1743094295851,0.31321341,86962.0,86961.0,0.1160547]
[1743094297067,0.31321341,86962.0,86961.0,0.1630547]
[1743094297864,0.31321341,86962.0,86961.0,0.17461974]
[1743094298368,0.31321341,86962.0,86961.0,0.12761974]
[1743094298568,0.31321341,86962.0,86961.0,0.1160547]
[1743094298764,0.31321341,86962.0,86961.0,0.00104]
[1743094298970,0.1150174,86959.0,86958.0,0.1150987]
[1743094299168,0.1156574,86959.0,86958.0,0.1150987]
[1743094299468,0.21753742,86959.0,86958.0,0.1150187]
[1743094300270,0.22253742,86959.0,86958.0,0.1150187]
[1743094300968,0.2109574,86959.0,86958.0,0.1161387]
[1743094301465,0.2109574,86959.0,86958.0,0.1616387]
[1743094302669,0.2109574,86959.0,86958.0,0.1161387]
[1743094303071,0.2109574,86959.0,86958.0,0.12762514]
[1743094303256,0.2109574,86959.0,86958.0,0.1161387]
[1743094303669,0.2109574,86959.0,86958.0,0.00112]
[1743094303864,0.21984098,86959.0,86958.0,0.00112]
[1743094304067,0.11502,86957.0,86956.0,0.2300411]
[1743094304370,0.1161,86957.0,86956.0,0.1161005]
[1743094304571,0.2524,86957.0,86956.0,0.00108]
[1743094304771,0.2524,86957.0,86956.0,0.1150213]
[1743094304961,0.26135813,86957.0,86956.0,0.1150213]
[1743094305370,0.26535813,86957.0,86956.0,0.1150213]
[1743094305763,0.26535813,86957.0,86956.0,0.1160613]
[1743094306770,0.2653435,86957.0,86956.0,0.1160613]
[1743094307671,0.2653435,86957.0,86956.0,0.00104]
[1743094307864,0.115024,86954.0,86953.0,8e-05]
[1743094308071,0.11606401,86954.0,86953.0,0.00112]
[1743094308265,0.21356897,86954.0,86953.0,0.1150253]
[1743094308465,0.21356897,86954.0,86953.0,0.1161453]
[1743094309068,0.21456897,86954.0,86953.0,0.1161453]
[1743094310568,0.21556897,86954.0,86953.0,0.00112]
[1743094310970,0.1150266,86952.0,86951.0,0.1150268]
[1743094311276,0.12507157,86952.0,86951.0,0.1160668]
[1743094311474,0.20937157,86952.0,86951.0,0.1160668]
[1743094312178,0.21137157,86952.0,86951.0,0.1160668]
[1743094313673,0.2115159,86952.0,86951.0,0.1160668]
[1743094315375,0.2115159,86952.0,86951.0,0.1613668]
[1743094315575,0.2115159,86952.0,86951.0,0.2055668]
[1743094317369,0.20236661,86952.0,86951.0,0.2055668]
[1743094317577,0.21147866,86952.0,86951.0,0.2055668]
[1743094319073,0.21147866,86952.0,86951.0,0.41209523]
[1743094320281,0.21047866,86952.0,86951.0,0.41309523]
[1743094320785,0.20947866,86952.0,86951.0,0.41309523]
[1743094321080,0.20947866,86952.0,86951.0,0.41509523]
[1743094322585,0.20947866,86952.0,86951.0,0.2085668]
[1743094323374,0.16817866,86952.0,86951.0,0.09354]
[1743094323581,0.21217866,86952.0,86951.0,0.09354]
[1743094323980,0.21217866,86952.0,86951.0,0.00404]
[1743094324190,0.0575177,86946.0,86942.0,0.34260819]
[1743094324376,0.4758385,86943.0,86942.0,0.34332819]
[1743094324577,0.48555056,86943.0,86942.0,0.13314029]
[1743094324884,0.57275056,86943.0,86942.0,0.13242029]
[1743094325080,0.57901681,86943.0,86942.0,0.13242029]
[1743094325983,0.58001681,86943.0,86942.0,0.13242029]
[1743094326179,0.84503535,86943.0,86942.0,0.06372029]
[1743094326385,0.1150452,86938.0,86937.0,0.00017251]
[1743094326700,0.1150452,86938.0,86937.0,0.00089251]
[1743094326701,0.48555726,86938.0,86937.0,0.00089251]
[1743094326980,0.48555726,86938.0,86937.0,0.00017251]
[1743094326981,0.57862351,86938.0,86937.0,0.00017251]
[1743094327885,1.13364867,86938.0,86937.0,1e-08]
[1743094328191,0.1150478,86936.0,86935.0,0.14475093]
[1743094328380,0.1150478,86936.0,86935.0,3e-08]
[1743094328381,0.23759985,86936.0,86935.0,3e-08]
[1743094328679,0.4803061,86936.0,86935.0,3e-08]
[1743094328881,0.4803061,86936.0,86926.0,0.06372029]
[1743094328882,0.59533126,86936.0,86930.0,8e-05]
[1743094329081,0.59533126,86936.0,86926.0,0.06372029]
[1743094329082,0.1150597,86927.0,86926.0,0.06372029]
[1743094329289,0.48569175,86927.0,86926.0,0.06444029]
[1743094329486,0.491958,86927.0,86926.0,0.06444029]
[1743094329881,0.6933858,86927.0,86926.0,0.06444029]
[1743094330081,0.7083239,86927.0,86926.0,0.06444029]
[1743094330385,0.72869738,86927.0,86926.0,0.00072]
[1743094330589,0.1150663,86922.0,86921.0,8e-05]
[1743094330792,0.61395646,86922.0,86921.0,8e-05]
[1743094331185,0.62022271,86922.0,86921.0,8e-05]
[1743094331386,0.70972271,86922.0,86921.0,8e-05]
[1743094331784,0.1150703,86919.0,86918.0,0.00017251]
[1743094331988,0.1460267,86919.0,86918.0,0.00017251]
[1743094332685,0.1460267,86919.0,86918.0,1e-08]
[1743094332883,0.261077,86919.0,86918.0,1e-08]
[1743094333085,0.51481075,86919.0,86918.0,1e-08]
[1743094333284,0.25481075,86919.0,86918.0,1e-08]
[1743094333794,0.25581075,86919.0,86918.0,0.00100001]
[1743094333989,0.24087265,86919.0,86918.0,0.00100001]
[1743094334204,0.2455923,86919.0,86918.0,0.00100001]
[1743094334391,0.1321123,86919.0,86918.0,0.00100001]
[1743094334688,0.23830235,86919.0,86918.0,0.00100001]
[1743094334878,0.2291903,86919.0,86918.0,0.11607161]
[1743094335077,0.00064,86919.0,86918.0,0.11607161]
[1743094335287,0.00064,86919.0,86918.0,0.20719161]
[1743094335485,0.1157103,86919.0,86918.0,0.20719161]
[1743094336289,0.00064,86919.0,86918.0,0.20719161]
[1743094336592,0.1157103,86919.0,86918.0,0.20719161]
[1743094336794,0.00064,86919.0,86918.0,0.21847966]
[1743094336988,0.1150703,86919.0,86918.0,0.21847966]
[1743094337183,0.1158303,86919.0,86918.0,0.21847966]
[1743094337383,0.00076,86919.0,86918.0,0.21847966]
[1743094338197,0.00017251,86927.0,86921.0,0.0575335]
[1743094338494,0.00017251,86927.0,86926.0,0.115061]
[1743094338495,0.17348651,86927.0,86926.0,0.115061]
[1743094338694,0.17348651,86927.0,86926.0,0.115861]
[1743094339397,0.00089251,86927.0,86926.0,0.115861]
[1743094339690,0.11595221,86927.0,86926.0,0.115861]
[1743094340595,0.11695221,86927.0,86926.0,0.115861]
[1743094341484,0.11595221,86927.0,86926.0,0.0008]
[1743094341681,0.11595221,86927.0,86926.0,0.116861]
[1743094341897,0.11595221,86927.0,86926.0,0.209761]
[1743094342095,0.16445221,86927.0,86926.0,0.209761]
[1743094342395,0.16445221,86927.0,86926.0,0.0947]
[1743094343190,0.16445221,86927.0,86926.0,0.0937]
[1743094343399,0.20855221,86927.0,86926.0,0.0947]
[1743094343989,0.20855221,86927.0,86926.0,0.207961]
[1743094344190,0.20855221,86927.0,86926.0,0.208761]
[1743094344693,0.00089251,86927.0,86926.0,0.208761]
[1743094344893,0.11595221,86927.0,86926.0,0.208761]
[1743094346202,0.11595221,86927.0,86926.0,0.208261]
[1743094347093,0.11595221,86927.0,86926.0,0.209261]
[1743094348097,0.12532621,86927.0,86926.0,0.209261]
[1743094348302,0.17252621,86927.0,86926.0,0.209261]
[1743094349003,0.16315221,86927.0,86926.0,0.0942]
[1743094349302,0.20735221,86927.0,86926.0,0.001]
[1743094349491,0.20735221,86927.0,86926.0,0.0018]
[1743094349692,0.20735221,86927.0,86926.0,0.00176]
[1743094349897,0.21678727,86927.0,86926.0,0.00176]
[1743094350300,0.21678727,86927.0,86926.0,0.115821]
[1743094350596,0.12538727,86927.0,86926.0,0.09586]
[1743094351495,0.12538727,86927.0,86926.0,0.0951]
[1743094351688,0.21818727,86927.0,86926.0,0.0951]
[1743094352209,0.23332621,86927.0,86926.0,0.00072]
[1743094352394,0.1150624,86925.0,86924.0,0.0479]
[1743094352594,0.1403964,86925.0,86924.0,0.09326]
[1743094352800,0.2331964,86925.0,86924.0,0.09326]
[1743094353703,0.30680641,86925.0,86924.0,0.09326]
[1743094353895,0.26120641,86925.0,86924.0,0.09326]
[1743094354095,0.23973746,86925.0,86924.0,0.09326]
[1743094354294,0.33053746,86925.0,86924.0,0.09326]
[1743094354493,0.33153746,86925.0,86924.0,0.09326]
[1743094355195,0.21805746,86925.0,86924.0,0.09326]
[1743094355395,0.33153746,86925.0,86924.0,0.0925]
[1743094355595,0.33153746,86925.0,86924.0,0.0479]
[1743094355996,0.33786081,86925.0,86924.0,0.0479]
[1743094356207,0.35281527,86925.0,86924.0,0.0479]
[1743094357393,0.115065,86923.0,86921.0,8e-05]
[1743094357599,0.23395582,86922.0,86921.0,8e-05]
[1743094357805,0.1150703,86919.0,86918.0,1e-08]
[1743094358007,0.50085983,86919.0,86918.0,1e-08]
[1743094358205,0.59898318,86919.0,86918.0,1e-08]
[1743094359803,0.61024509,86919.0,86918.0,1e-08]
[1743094360308,0.61024509,86919.0,86918.0,0.00100001]
[1743094364309,0.61024509,86919.0,86914.0,8e-05]
[1743094364310,0.1150743,86916.0,86915.0,0.0971]
[1743094364516,0.14006383,86916.0,86915.0,0.2121756]
[1743094364812,0.14006383,86916.0,86915.0,0.1423]
[1743094365002,0.14006383,86916.0,86915.0,0.14302]
[1743094365203,0.12510937,86916.0,86915.0,0.14302]
[1743094365403,0.12510937,86916.0,86915.0,0.09782]
[1743094365698,0.23216792,86916.0,86915.0,0.0971]
[1743094365907,0.1150756,86915.0,86914.0,8e-05]
[1743094366107,0.59520921,86915.0,86914.0,8e-05]
[1743094366414,0.1726267,86909.0,86908.0,0.1151646]
[1743094366602,0.19822031,86909.0,86908.0,0.1626646]
[1743094367003,0.18286176,86909.0,86908.0,0.1626646]
[1743094367205,0.19846323,86909.0,86908.0,0.1626646]
[1743094368715,0.18286176,86909.0,86908.0,0.1626646]
[1743094369718,0.18312091,86909.0,86908.0,0.1626646]
[1743094370211,0.19863159,86909.0,86908.0,0.1626646]
[1743094370411,0.18312091,86909.0,86908.0,0.1626646]
[1743094371117,0.12557771,86909.0,86908.0,0.1626646]
[1743094372609,0.1158835,86909.0,86908.0,0.1626646]
[1743094373713,0.12558161,86909.0,86908.0,0.1626646]
[1743094373916,0.1158835,86909.0,86908.0,0.1626646]
[1743094374811,0.0008,86909.0,86908.0,0.1626646]
[1743094375018,0.1158835,86909.0,86908.0,0.1626646]
[1743094375220,0.0008,86909.0,86908.0,0.1626646]
[1743094375518,0.1726161,86916.0,86915.0,0.1150756]
[1743094375712,0.06790268,86916.0,86915.0,0.1158756]
[1743094376015,0.06790268,86916.0,86915.0,0.2139756]
[1743094377110,0.17095095,86930.0,86918.0,0.0575351]
[1743094377312,0.3608,86948.0,86930.0,0.0575278]
[1743094377505,0.11396,86957.0,86946.0,0.1150346]
[1743094377506,0.00883447,86955.0,86946.0,0.1150346]
[1743094377709,0.35436103,86947.0,86946.0,0.1159946]
[1743094378412,0.35436103,86947.0,86946.0,0.1632946]
[1743094378618,0.35436103,86947.0,86946.0,0.17479441]
[1743094379120,0.35436103,86947.0,86946.0,0.1632946]
[1743094379319,0.12099321,86947.0,86946.0,0.1632946]
[1743094379619,0.12599321,86947.0,86946.0,0.1632946]
[1743094379816,0.12099321,86947.0,86946.0,0.1632946]
[1743094380113,0.12299321,86947.0,86946.0,0.1632946]
[1743094380416,0.23379321,86947.0,86946.0,0.00096]
[1743094380623,0.1150438,86939.0,86938.0,0.00017251]
[1743094380918,0.1156838,86939.0,86938.0,0.00017251]
[1743094381120,0.12213815,86939.0,86938.0,0.00113251]
[1743094381329,0.12213815,86939.0,86938.0,0.11713771]
[1743094381511,0.1156838,86939.0,86938.0,0.11617771]
[1743094381714,0.1156838,86939.0,86938.0,0.00113251]
[1743094382214,0.1156838,86939.0,86938.0,0.00017251]
[1743094382519,0.1156838,86939.0,86938.0,0.00121251]
[1743094382714,0.1156838,86939.0,86938.0,0.00017251]
[1743094382911,0.1156838,86939.0,86938.0,0.00117251]
[1743094383115,0.1156838,86939.0,86938.0,0.11621771]
[1743094383313,0.1156838,86939.0,86938.0,0.00117251]
[1743094384320,0.1156838,86939.0,86938.0,0.11621771]
[1743094384510,0.1156838,86939.0,86938.0,0.00117251]
[1743094384707,0.00064,86939.0,86938.0,0.11621771]
[1743094384919,0.1150438,86939.0,86938.0,0.20881771]
[1743094385116,0.11700381,86939.0,86938.0,0.20881771]
[1743094385516,0.00196001,86939.0,86938.0,0.20881771]
[1743094385820,0.1150409,86948.0,86947.0,0.1150293]
[1743094386016,0.11600091,86948.0,86947.0,0.1159893]
[1743094386617,0.11600091,86948.0,86947.0,0.1735046]
[1743094387124,0.11900091,86948.0,86947.0,0.1735046]
[1743094387321,0.16640091,86948.0,86947.0,0.1735046]
[1743094387522,0.00396001,86948.0,86947.0,0.1735046]
[1743094387826,0.11899191,86948.0,86947.0,0.1735046]
[1743094388026,0.12099191,86948.0,86947.0,0.1735046]
[1743094391037,0.16929191,86948.0,86947.0,0.1735046]
[1743094391220,0.21499191,86948.0,86947.0,0.1735046]
[1743094393523,0.16669191,86948.0,86947.0,0.1735046]
[1743094394331,0.21239191,86948.0,86947.0,0.1735046]
[1743094395027,0.21239191,86948.0,86947.0,0.2695046]
[1743094395435,0.16669191,86948.0,86947.0,0.2695046]
[1743094395727,0.05166001,86948.0,86947.0,0.2695046]
[1743094396029,0.0507,86948.0,86947.0,0.2695046]
[1743094396228,0.00596001,86948.0,86947.0,0.2695046]
[1743094396433,0.005,86948.0,86947.0,0.2695046]
[1743094397024,0.1081761,86963.0,86956.0,0.0575101]
[1743094397227,0.1088161,86963.0,86962.0,0.1150134]
[1743094397428,0.1663221,86963.0,86962.0,0.1160134]
[1743094397633,0.2122221,86963.0,86962.0,0.1160134]
[1743094397930,0.2122221,86963.0,86962.0,0.2094134]